bitfinex/quotes_BTCUSD_20240817
["timestamp","ask_amount","ask_price","bid_price","bid_amount"]
[1723903901067,0.002825,59520.0,59519.0,0.7710575]
[1723903906286,0.001825,59520.0,59519.0,0.7700575]
[1723903906583,0.002825,59520.0,59519.0,0.7710575]
[1723903906812,0.002825,59520.0,59519.0,0.79239236]
[1723903907035,0.002825,59520.0,59519.0,0.79239217]
[1723903907728,0.000825,59520.0,59519.0,0.79139217]
[1723903907948,0.000825,59520.0,59519.0,0.79239217]
[1723903907949,0.001825,59520.0,59519.0,0.79239217]
[1723903908174,0.002825,59520.0,59519.0,1.04441217]
[1723903908415,0.001825,59520.0,59519.0,0.79239217]
[1723903908648,0.002825,59520.0,59519.0,0.79239217]
[1723903908900,0.002825,59520.0,59519.0,1.04441217]
[1723903909109,0.001825,59520.0,59519.0,0.79239217]
[1723903909582,0.001825,59520.0,59519.0,0.79139217]
[1723903910351,0.002825,59520.0,59519.0,0.79239217]
[1723903910976,0.001825,59520.0,59519.0,0.79139217]
[1723903911326,0.002825,59520.0,59519.0,0.79239217]
[1723903914018,0.002825,59520.0,59519.0,0.88619217]
[1723903915200,0.002825,59520.0,59519.0,0.88619176]
[1723903917252,0.002825,59520.0,59519.0,0.91514515]
[1723903918006,0.002825,59520.0,59519.0,0.88619176]
[1723903918214,0.002825,59520.0,59519.0,0.92440077]
[1723903919202,0.002825,59520.0,59519.0,0.8648575]
[1723903919408,0.002825,59520.0,59519.0,0.92440081]
[1723903919611,0.002825,59520.0,59519.0,1.02440081]
[1723903919813,0.002825,59520.0,59519.0,1.27642081]
[1723903921516,0.002825,59520.0,59519.0,1.32663854]
[1723903922594,0.002825,59520.0,59519.0,1.34633522]
[1723903922810,0.002825,59520.0,59519.0,1.32663744]
[1723903923717,0.002825,59520.0,59519.0,1.49819198]
[1723903924335,0.002825,59520.0,59519.0,1.44797425]
[1723903924578,0.002825,59520.0,59519.0,1.52334717]
[1723903925526,0.002825,59520.0,59519.0,1.80226434]
[1723903925762,0.002825,59520.0,59519.0,0.86687263]
[1723903925972,0.002825,59520.0,59519.0,0.84175748]
[1723903926193,0.002825,59520.0,59519.0,0.79147098]
[1723903926431,0.002825,59520.0,59519.0,0.84175858]
[1723903926616,0.002825,59520.0,59519.0,0.78224507]
[1723903926842,0.002825,59520.0,59519.0,0.83250284]
[1723903927299,0.002825,59520.0,59519.0,0.84175867]
[1723903927526,0.002825,59520.0,59519.0,0.79150085]
[1723903928044,0.002825,59520.0,59519.0,0.8325275]
[1723903928264,0.002825,59520.0,59519.0,0.83252718]
[1723903928491,0.002825,59520.0,59519.0,1.23960601]
[1723903928712,0.002825,59520.0,59519.0,0.78224507]
[1723903928934,0.002825,59520.0,59519.0,0.83254321]
[1723903929159,0.002825,59520.0,59519.0,0.78224507]
[1723903929578,0.002825,59520.0,59519.0,1.23043163]
[1723903929933,0.141725,59520.0,59519.0,1.23043163]
[1723903930136,0.141725,59520.0,59519.0,0.85769228]
[1723903930417,0.141725,59520.0,59519.0,0.82873901]
[1723903930648,0.141725,59520.0,59519.0,1.25558139]
[1723903931428,0.141725,59520.0,59519.0,0.9029651]
[1723903931818,0.141725,59520.0,59519.0,1.1549851]
[1723903932378,0.141725,59520.0,59519.0,0.9029651]
[1723903933800,0.141725,59520.0,59519.0,0.6509467]
[1723903934028,0.519749,59520.0,59519.0,0.52200524]
[1723903934271,0.519749,59520.0,59519.0,0.07365215]
[1723903934503,0.519749,59520.0,59519.0,0.05235106]
[1723903934933,0.519749,59520.0,59519.0,0.07368849]
[1723903935154,0.266733,59520.0,59519.0,0.07368849]
[1723903935396,0.266733,59520.0,59519.0,0.05235106]
[1723903935602,0.267733,59520.0,59519.0,0.05235106]
[1723903935846,0.267733,59520.0,59519.0,0.0009075]
[1723903935847,0.266733,59520.0,59519.0,0.0009075]
[1723903936055,0.94231954,59520.0,59519.0,0.0009075]
[1723903936261,1.19433554,59520.0,59519.0,0.0009075]
[1723903936508,1.25451092,59520.0,59519.0,0.0009075]
[1723903936724,1.25551092,59520.0,59519.0,0.0069075]
[1723903937174,1.25451092,59520.0,59519.0,0.0009075]
[1723903938073,1.25351092,59520.0,59519.0,0.0009075]
[1723903938470,1.25451092,59520.0,59519.0,0.0009075]
[1723903938678,1.19333554,59520.0,59519.0,0.0009075]
[1723903939175,1.20233554,59520.0,59519.0,0.0009075]
[1723903940042,1.21133554,59520.0,59519.0,0.0019075]
[1723903940674,1.20233554,59520.0,59519.0,0.0009075]
[1723903940851,1.20933554,59520.0,59519.0,0.0019075]
[1723903942115,1.21033554,59520.0,59519.0,0.0019075]
[1723903942319,1.26950973,59520.0,59519.0,0.0019075]
[1723903942521,1.21929773,59520.0,59519.0,0.0019075]
[1723903944676,1.22029773,59520.0,59519.0,0.0019075]
[1723903945103,1.22229773,59520.0,59519.0,0.0019075]
[1723903945438,1.20933554,59520.0,59519.0,0.0019075]
[1723903947566,1.21929116,59520.0,59519.0,0.0019075]
[1723903949976,1.20933554,59520.0,59519.0,0.0019075]
[1723903957317,1.34717902,59520.0,59519.0,0.0019075]
[1723903957513,1.66140205,59520.0,59519.0,0.0019075]
[1723903958724,1.65740205,59520.0,59519.0,0.0019075]
[1723903958925,1.66140205,59520.0,59519.0,0.0019075]
[1723903960028,1.86140205,59520.0,59519.0,0.0019075]
[1723903961036,1.98440205,59520.0,59519.0,0.0019075]
[1723903961478,1.97540205,59520.0,59519.0,0.0019075]
[1723903961815,1.98940205,59520.0,59519.0,0.0019075]
[1723903962016,1.98240205,59520.0,59519.0,0.0009075]
[1723903962225,1.99640205,59520.0,59519.0,0.0009075]
[1723903964538,1.85755857,59520.0,59519.0,0.0009075]
[1723903964763,1.83455857,59520.0,59519.0,0.0009075]
[1723903965815,2.01175857,59520.0,59519.0,0.0009075]
[1723903966046,1.83455857,59520.0,59519.0,0.0009075]
[1723903966224,1.83855857,59520.0,59519.0,0.0009075]
[1723903966433,2.01011311,59520.0,59519.0,0.0009075]
[1723903969232,1.83455857,59520.0,59519.0,0.0009075]
[1723903971179,1.63355857,59520.0,59519.0,0.0009075]
[1723903971518,1.72735857,59520.0,59519.0,0.0009075]
[1723903971669,1.47534257,59520.0,59519.0,0.0009075]
[1723903975548,1.38154257,59520.0,59519.0,0.0009075]
[1723903975702,1.47534257,59520.0,59519.0,0.0009075]
[1723903976088,0.99062657,59520.0,59519.0,0.0009075]
[1723903976276,0.98442657,59520.0,59519.0,0.0771075]
[1723903977468,0.57840354,59520.0,59519.0,0.0771075]
[1723903977676,0.028825,59520.0,59519.0,0.0771075]
[1723903977902,0.028825,59520.0,59519.0,0.1396075]
[1723903978097,0.014825,59520.0,59519.0,0.5176375]
[1723903978298,0.000825,59520.0,59519.0,0.2656175]
[1723903978497,0.008825,59520.0,59519.0,0.2656175]
[1723903978677,0.014825,59520.0,59519.0,0.2666175]
[1723903979034,0.019825,59520.0,59519.0,0.2666175]
[1723903979348,0.005825,59520.0,59519.0,0.2656175]
[1723903979533,0.008825,59520.0,59519.0,0.2656175]
[1723903979773,0.008825,59520.0,59519.0,0.5176375]
[1723903981357,0.134833,59520.0,59519.0,0.1396075]
[1723903981764,0.008825,59520.0,59519.0,0.1396075]
[1723903981964,0.134833,59520.0,59519.0,0.1396075]
[1723903982579,0.008825,59520.0,59519.0,0.1396075]
[1723903982755,0.008825,59520.0,59519.0,0.2656175]
[1723903984100,0.008825,59520.0,59519.0,0.5176375]
[1723903986271,0.008825,59520.0,59519.0,0.2656175]
[1723903992689,0.008825,59520.0,59519.0,0.1396075]
[1723903994861,0.008825,59520.0,59519.0,0.5176375]
[1723903995084,0.008825,59520.0,59519.0,0.1396075]
[1723903995748,0.008825,59520.0,59519.0,0.2656175]
[1723903996332,0.008825,59520.0,59519.0,0.5176375]
[1723903996756,0.008825,59520.0,59519.0,0.0009075]
[1723903997454,0.134833,59520.0,59519.0,0.0009075]
[1723903998213,0.131833,59520.0,59519.0,0.0009075]
[1723903998443,0.472649,59520.0,59519.0,0.0009075]
[1723903998667,0.473649,59520.0,59519.0,0.0009075]
[1723903998901,0.477649,59520.0,59519.0,0.0009075]
[1723904001177,0.729665,59520.0,59519.0,0.0009075]
[1723904001392,0.869565,59520.0,59519.0,0.0009075]
[1723904001626,1.29313554,59520.0,59519.0,0.0009075]
[1723904003522,1.19933554,59520.0,59519.0,0.0009075]
[1723904004620,1.29313554,59520.0,59519.0,0.0009075]
[1723904004953,1.04111954,59520.0,59519.0,0.0009075]
[1723904005181,0.635865,59520.0,59519.0,0.0009075]
[1723904005380,0.131833,59520.0,59519.0,0.0009075]
[1723904006446,0.005825,59520.0,59519.0,0.0009075]
[1723904007246,0.005825,59520.0,59519.0,0.21295441]
[1723904007446,0.005825,59520.0,59519.0,0.1916175]
[1723904007624,0.005825,59520.0,59519.0,0.21295446]
[1723904007807,0.005825,59520.0,59519.0,0.46497446]
[1723904008251,0.005825,59520.0,59519.0,0.4436375]
[1723904008569,0.005825,59520.0,59519.0,0.46497424]
[1723904009216,0.005825,59520.0,59519.0,0.4436375]
[1723904009419,0.005825,59520.0,59519.0,0.1916175]
[1723904009638,0.005825,59520.0,59519.0,0.21295446]
[1723904009841,0.005825,59520.0,59519.0,0.1916175]
[1723904010198,0.005825,59520.0,59519.0,0.14825447]
[1723904011474,0.005825,59520.0,59519.0,0.02224447]
[1723904011475,0.131833,59520.0,59519.0,0.02224447]
[1723904011680,0.131833,59520.0,59519.0,0.0009075]
[1723904012551,0.635865,59520.0,59519.0,0.0009075]
[1723904018677,0.83741954,59520.0,59519.0,0.0009075]
[1723904018937,0.98531954,59520.0,59519.0,0.0009075]
[1723904019194,1.23733554,59520.0,59519.0,0.0009075]
[1723904019662,1.29754412,59520.0,59519.0,0.0009075]
[1723904029536,0.98531954,59520.0,59519.0,0.0009075]
[1723904034530,1.07911954,59520.0,59519.0,0.0009075]
[1723904044398,1.13933927,59520.0,59519.0,0.0009075]
[1723904044600,0.47406873,59520.0,59519.0,0.0009075]
[1723904044847,0.413849,59520.0,59519.0,0.0009075]
[1723904047576,0.47408513,59520.0,59519.0,0.0009075]
[1723904047813,0.413849,59520.0,59519.0,0.0009075]
[1723904048234,0.47409501,59520.0,59519.0,0.0009075]
[1723904048442,0.72611101,59520.0,59519.0,0.0009075]
[1723904048643,0.80381101,59520.0,59519.0,0.0009075]
[1723904048853,1.13233665,59520.0,59519.0,0.0009075]
[1723904049508,1.03646555,59520.0,59519.0,0.0009075]
[1723904050525,1.13026555,59520.0,59519.0,0.0009075]
[1723904051278,1.38228155,59520.0,59519.0,0.0009075]
[1723904051484,1.13026555,59520.0,59519.0,0.0009075]
[1723904056987,1.38228155,59520.0,59519.0,0.0009075]
[1723904057214,1.5264322,59520.0,59519.0,0.0009075]
[1723904057415,1.38228155,59520.0,59519.0,0.0009075]
[1723904057844,1.13026555,59520.0,59519.0,0.0009075]
[1723904058270,1.38228155,59520.0,59519.0,0.0009075]
[1723904058821,1.13026555,59520.0,59519.0,0.0009075]
[1723904059112,1.38228155,59520.0,59519.0,0.0009075]
[1723904060422,0.89766555,59520.0,59519.0,0.0009075]
[1723904062608,1.04026555,59520.0,59519.0,0.0009075]
[1723904063033,1.29228155,59520.0,59519.0,0.0009075]
[1723904069639,1.35962909,59520.0,59519.0,0.0009075]
[1723904070239,1.36062909,59520.0,59519.0,0.0009075]
[1723904070464,1.35962909,59520.0,59519.0,0.0009075]
[1723904070783,1.36062909,59520.0,59519.0,0.0009075]
[1723904071016,1.35762909,59520.0,59519.0,0.0009075]
[1723904071391,1.36262909,59520.0,59519.0,0.0009075]
[1723904071853,1.29528155,59520.0,59519.0,0.0009075]
[1723904078800,1.29503487,59520.0,59519.0,0.0009075]
[1723904079662,1.29803487,59520.0,59519.0,0.0009075]
[1723904080419,1.29503487,59520.0,59519.0,0.0009075]
[1723904080820,1.29603487,59520.0,59519.0,0.0009075]
[1723904081226,1.30602559,59520.0,59519.0,0.0009075]
[1723904082021,1.30902559,59520.0,59519.0,0.0009075]
[1723904082266,1.4108801,59520.0,59519.0,0.0009075]
[1723904082481,1.41002559,59520.0,59519.0,0.0009075]
[1723904082687,1.78810973,59520.0,59519.0,0.0009075]
[1723904083082,1.53982873,59520.0,59519.0,0.0009075]
[1723904083287,1.68612866,59520.0,59519.0,0.0009075]
[1723904083502,1.69512866,59520.0,59519.0,0.0009075]
[1723904083932,1.68112866,59520.0,59519.0,0.0009075]
[1723904084152,1.69312866,59520.0,59519.0,0.0009075]
[1723904084356,1.95714466,59520.0,59519.0,0.0009075]
[1723904085014,1.68112866,59520.0,59519.0,0.0009075]
[1723904085189,1.96114466,59520.0,59519.0,0.0009075]
[1723904085600,1.96114466,59520.0,59513.0,0.0009064]
[1723904085601,1.369184,59514.0,59513.0,0.0009064]
[1723904085887,1.83778455,59514.0,59513.0,0.0009064]
[1723904086114,1.93778455,59514.0,59513.0,0.0009064]
[1723904087311,1.95278455,59514.0,59513.0,0.0009064]
[1723904087500,2.0786342,59514.0,59513.0,0.0009064]
[1723904088313,2.07809271,59514.0,59513.0,0.0009064]
[1723904088525,2.053433,59514.0,59513.0,0.0009064]
[1723904089342,1.95278455,59514.0,59513.0,0.0009064]
[1723904091104,1.96317555,59514.0,59513.0,0.0009064]
[1723904094565,1.86537555,59514.0,59513.0,0.0009064]
[1723904094825,1.86637555,59514.0,59513.0,0.0009064]
[1723904094994,1.86937555,59514.0,59513.0,0.0009064]
[1723904097233,1.96317555,59514.0,59513.0,0.0009064]
[1723904097436,1.96117555,59514.0,59513.0,0.0009064]
[1723904099021,1.96317555,59514.0,59513.0,0.0009064]
[1723904099583,2.13473009,59514.0,59513.0,0.0009064]
[1723904100498,1.86537555,59514.0,59513.0,0.0009064]
[1723904100701,1.96317555,59514.0,59513.0,0.0009064]
[1723904101751,2.41541655,59514.0,59513.0,0.0009064]
[1723904102764,2.40941655,59514.0,59513.0,0.0009064]
[1723904103359,2.42141655,59514.0,59513.0,0.0009064]
[1723904103819,2.41241655,59514.0,59513.0,0.0009064]
[1723904104022,2.59797109,59514.0,59513.0,0.0009064]
[1723904104669,0.882427,59495.0,59494.0,0.0009064]
[1723904104901,1.05398154,59495.0,59494.0,0.51268149]
[1723904105102,1.05398154,59495.0,59494.0,0.0009064]
[1723904106060,1.05398154,59495.0,59494.0,0.1434064]
[1723904106061,0.80185954,59495.0,59494.0,0.1434064]
[1723904106462,0.80885954,59495.0,59494.0,0.1434064]
[1723904107749,0.81885954,59495.0,59494.0,0.1434064]
[1723904108382,0.66053754,59495.0,59494.0,0.1434064]
[1723904108795,0.91265954,59495.0,59494.0,0.1434064]
[1723904112076,0.66053754,59495.0,59494.0,0.1434064]
[1723904112293,0.91265954,59495.0,59494.0,0.1434064]
[1723904112796,0.66053754,59495.0,59494.0,0.1434064]
[1723904113037,0.65353754,59495.0,59494.0,0.1434064]
[1723904113268,0.91265954,59495.0,59494.0,0.1434064]
[1723904113477,0.66053754,59495.0,59494.0,0.1434064]
[1723904113709,0.90265954,59495.0,59494.0,0.1434064]
[1723904114127,0.65953754,59495.0,59494.0,0.1434064]
[1723904114374,0.65053754,59495.0,59494.0,0.1434064]
[1723904114581,0.90265954,59495.0,59494.0,0.1434064]
[1723904114780,0.65753754,59495.0,59494.0,0.1434064]
[1723904114984,0.478983,59495.0,59494.0,0.1434064]
[1723904115203,0.482983,59495.0,59494.0,0.1434064]
[1723904117078,0.011,59495.0,59494.0,0.2694694]
[1723904117311,0.011,59495.0,59494.0,0.54294033]
[1723904117994,0.389183,59495.0,59494.0,0.1434064]
[1723904118204,0.133061,59495.0,59494.0,0.1434064]
[1723904118438,0.126061,59495.0,59494.0,0.1434064]
[1723904118635,0.129061,59495.0,59494.0,0.0009064]
[1723904118839,0.633305,59495.0,59494.0,0.0009064]
[1723904119042,0.724105,59495.0,59494.0,0.0009064]
[1723904119467,0.725105,59495.0,59494.0,0.0009064]
[1723904119922,0.471983,59495.0,59494.0,0.0009064]
[1723904120235,0.378183,59495.0,59494.0,0.1456064]
[1723904121176,0.126061,59495.0,59494.0,0.1456064]
[1723904121391,0.126057,59497.0,59496.0,0.0618]
[1723904121644,0.126053,59499.0,59496.0,0.1447]
[1723904121861,0.126053,59499.0,59497.0,0.1447]
[1723904122708,0.006,59499.0,59498.0,0.0829]
[1723904122911,0.006,59499.0,59498.0,0.1447]
[1723904123117,0.12605,59500.0,59498.0,0.1447]
[1723904123356,0.006,59499.0,59498.0,0.1447]
[1723904124388,0.132052,59499.0,59498.0,0.1447]
[1723904124727,0.384157,59499.0,59498.0,0.0829]
[1723904125283,0.378157,59499.0,59498.0,0.0829]
[1723904125660,0.387157,59499.0,59498.0,0.0829]
[1723904127367,0.135052,59499.0,59498.0,0.0829]
[1723904127572,0.009,59499.0,59498.0,0.0829]
[1723904128018,0.135052,59499.0,59498.0,0.0838075]
[1723904131092,0.387157,59499.0,59498.0,0.0838075]
[1723904131451,0.135052,59499.0,59498.0,0.0838075]
[1723904132428,0.009,59499.0,59498.0,0.0838075]
[1723904132602,0.135052,59499.0,59498.0,0.1456075]
[1723904133463,0.009,59499.0,59498.0,0.1456075]
[1723904136244,0.009,59499.0,59498.0,0.2716615]
[1723904136865,0.009,59499.0,59498.0,0.1456075]
[1723904139662,0.009,59499.0,59498.0,0.5451142]
[1723904140077,0.009,59499.0,59498.0,0.62063783]
[1723904140308,0.009,59499.0,59498.0,1.27081691]
[1723904140518,0.009,59499.0,59498.0,1.14877503]
[1723904140729,0.006,59499.0,59498.0,1.17011698]
[1723904140930,0.17557795,59506.0,59502.0,0.126045]
[1723904141136,0.17557795,59506.0,59504.0,0.0799]
[1723904141342,0.126038,59506.0,59504.0,0.0799]
[1723904141857,0.126039,59505.0,59504.0,0.0799]
[1723904142055,0.126037,59506.0,59504.0,0.0799]
[1723904142904,0.002,59506.0,59504.0,0.0799]
[1723904143262,0.005,59506.0,59504.0,0.0799]
[1723904143683,0.007,59506.0,59504.0,0.0799]
[1723904146736,0.007,59506.0,59504.0,0.20594]
[1723904146912,0.007,59506.0,59504.0,0.0799]
[1723904147121,0.133037,59506.0,59504.0,0.0799]
[1723904147317,0.007,59506.0,59504.0,0.0799]
[1723904147531,0.007,59506.0,59505.0,0.126039]
[1723904147684,0.002,59506.0,59504.0,0.205941]
[1723904147907,0.005,59506.0,59504.0,0.205941]
[1723904148963,0.003,59506.0,59505.0,0.126039]
[1723904150088,0.126033,59508.0,59504.0,0.205941]
[1723904150757,0.003,59506.0,59504.0,0.205941]
[1723904151163,0.126033,59508.0,59504.0,0.205941]
[1723904151500,0.131033,59508.0,59504.0,0.205941]
[1723904151704,0.126033,59508.0,59504.0,0.205941]
[1723904152453,0.128033,59508.0,59504.0,0.205941]
[1723904153069,0.003,59506.0,59504.0,0.205941]
[1723904153524,0.128033,59508.0,59505.0,0.126039]
[1723904153817,0.133033,59508.0,59505.0,0.126039]
[1723904154019,0.131033,59508.0,59505.0,0.126039]
[1723904154403,0.003,59506.0,59505.0,0.126039]
[1723904156068,0.003,59506.0,59505.0,0.378118]
[1723904156268,0.000825,59509.0,59508.0,0.1386]
[1723904157884,0.003825,59509.0,59508.0,0.1386]
[1723904159282,0.006825,59509.0,59508.0,0.1386]
[1723904159753,0.003825,59509.0,59508.0,0.1386]
[1723904159953,0.003825,59509.0,59506.0,0.264636]
[1723904160150,0.003825,59509.0,59506.0,0.203836]
[1723904160976,0.000825,59509.0,59506.0,0.203836]
[1723904161664,0.000825,59509.0,59506.0,0.126036]
[1723904161874,0.0938,59507.0,59504.0,0.0009075]
[1723904162069,0.219836,59507.0,59504.0,0.0009075]
[1723904162268,0.0938,59507.0,59505.0,0.02132883]
[1723904162449,0.0938,59507.0,59504.0,0.0009075]
[1723904162649,0.219836,59507.0,59505.0,0.02132927]
[1723904162848,0.219836,59507.0,59504.0,0.0009075]
[1723904163074,0.219836,59507.0,59505.0,0.02132249]
[1723904163250,0.219836,59507.0,59504.0,0.0009075]
[1723904163821,0.219836,59507.0,59505.0,0.02132508]
[1723904163952,0.219836,59507.0,59504.0,0.0009075]
[1723904164155,0.0938,59507.0,59505.0,0.02132426]
[1723904164356,0.000825,59509.0,59505.0,0.126039]
[1723904164560,0.126856,59509.0,59505.0,0.126039]
[1723904164763,0.002,59507.0,59505.0,0.203839]
[1723904165137,0.126856,59509.0,59505.0,0.203839]
[1723904165449,0.126856,59509.0,59506.0,0.02132284]
[1723904165645,0.126033,59508.0,59505.0,0.203839]
[1723904165851,0.126033,59508.0,59506.0,0.02132238]
[1723904166047,0.126033,59508.0,59505.0,0.203839]
[1723904166309,0.126033,59508.0,59506.0,0.02132235]
[1723904166609,0.002,59507.0,59505.0,0.203839]
[1723904166836,0.126033,59508.0,59506.0,0.0213214]
[1723904166947,0.126856,59509.0,59506.0,0.126037]
[1723904167152,0.003,59508.0,59506.0,0.126037]
[1723904167352,0.003,59508.0,59505.0,0.08116071]
[1723904167557,0.003,59508.0,59506.0,0.126037]
[1723904167759,0.002,59507.0,59506.0,0.126037]
[1723904167970,0.002,59507.0,59506.0,0.14735789]
[1723904168182,0.000825,59509.0,59506.0,0.14735789]
[1723904168406,0.000825,59509.0,59508.0,0.524099]
[1723904168615,0.000825,59509.0,59508.0,1.04955189]
[1723904168819,0.000825,59509.0,59508.0,1.52301498]
[1723904169014,0.000825,59509.0,59508.0,1.55193475]
[1723904169231,0.000825,59509.0,59508.0,1.55193366]
[1723904169445,0.000825,59509.0,59508.0,1.72348871]
[1723904169869,0.001825,59509.0,59508.0,1.72348871]
[1723904170285,0.001825,59509.0,59508.0,1.66934768]
[1723904170508,0.001825,59509.0,59508.0,1.66934001]
[1723904170732,0.002825,59509.0,59508.0,1.67234001]
[1723904171195,0.001825,59509.0,59508.0,1.29953584]
[1723904171420,0.001825,59509.0,59508.0,0.8759153]
[1723904171622,0.001825,59509.0,59508.0,0.80047667]
[1723904171623,0.002825,59509.0,59508.0,0.80047667]
[1723904171830,0.002825,59509.0,59508.0,0.85076915]
[1723904172026,0.002825,59509.0,59508.0,0.80047667]
[1723904172439,0.001825,59509.0,59508.0,0.80047667]
[1723904172888,0.002825,59509.0,59508.0,0.85077063]
[1723904173128,0.002825,59509.0,59508.0,0.80047667]
[1723904173591,0.001825,59509.0,59508.0,0.79747667]
[1723904173958,0.002825,59509.0,59508.0,0.80047667]
[1723904174162,0.002825,59509.0,59508.0,0.79747667]
[1723904174557,0.003825,59509.0,59508.0,0.80047667]
[1723904174945,0.003825,59509.0,59508.0,0.85077063]
[1723904175098,0.002825,59509.0,59508.0,0.85077063]
[1723904175281,0.003825,59509.0,59508.0,0.80047667]
[1723904175481,0.003825,59509.0,59508.0,0.85077063]
[1723904175685,0.003825,59509.0,59508.0,0.8004767]
[1723904175879,0.003825,59509.0,59508.0,0.85077066]
[1723904176861,0.003825,59509.0,59508.0,0.7350767]
[1723904177066,0.003825,59509.0,59508.0,0.78537066]
[1723904177402,0.003825,59509.0,59508.0,0.7350767]
[1723904177603,0.003825,59509.0,59508.0,0.78537066]
[1723904178075,0.003825,59509.0,59508.0,0.7350767]
[1723904178538,0.003825,59509.0,59508.0,0.78537066]
[1723904178767,0.003825,59509.0,59508.0,0.7350767]
[1723904179516,0.003825,59509.0,59508.0,0.78537066]
[1723904179719,0.003825,59509.0,59508.0,0.76405896]
[1723904179887,0.003825,59509.0,59508.0,0.78536699]
[1723904180082,0.003825,59509.0,59508.0,0.73507303]
[1723904181267,0.003825,59509.0,59508.0,0.78536699]
[1723904181619,0.003825,59509.0,59508.0,0.82887303]
[1723904182026,0.003825,59509.0,59508.0,1.41679357]
[1723904182227,0.003825,59509.0,59508.0,1.91056333]
[1723904182228,1e-08,59509.0,59508.0,1.91056333]
[1723904182426,1e-08,59509.0,59508.0,1.85573377]
[1723904182652,1e-08,59509.0,59508.0,2.10779977]
[1723904182810,0.00057832,59520.0,59511.0,0.001]
[1723904183036,0.00057832,59520.0,59518.0,0.96459301]
[1723904183228,0.00057832,59520.0,59518.0,1.51018268]
[1723904183420,0.00057832,59520.0,59518.0,1.61071569]
[1723904183945,0.00057832,59520.0,59518.0,1.58940766]
[1723904184352,0.00057832,59520.0,59518.0,1.58553793]
[1723904184535,0.00057832,59520.0,59518.0,1.51017186]
[1723904184961,0.00057832,59520.0,59518.0,1.51317186]
[1723904185166,0.00057832,59520.0,59518.0,1.58853631]
[1723904186337,0.00057832,59520.0,59518.0,1.13738121]
[1723904186819,0.001825,59519.0,59518.0,1.22170179]
[1723904186951,0.001825,59519.0,59518.0,1.23070179]
[1723904187161,0.001825,59519.0,59518.0,1.40225633]
[1723904187531,0.001825,59519.0,59518.0,1.97569474]
[1723904187665,0.001825,59519.0,59518.0,2.11381645]
[1723904188103,0.001825,59519.0,59518.0,2.06363224]
[1723904188303,0.001825,59519.0,59518.0,2.11380666]
[1723904188514,0.000825,59519.0,59518.0,2.31421419]
[1723904188711,0.00057832,59520.0,59519.0,1.13509]
[1723904188951,0.00057832,59520.0,59519.0,2.15262982]
[1723904189378,0.00057832,59520.0,59519.0,2.00198866]
[1723904189518,0.00057832,59520.0,59519.0,2.00398866]
[1723904189719,0.00057832,59520.0,59519.0,2.00598866]
[1723904190786,0.00057832,59520.0,59519.0,2.01998866]
[1723904190992,0.00157832,59520.0,59519.0,1.66125367]
[1723904191163,0.00157832,59520.0,59519.0,1.76766964]
[1723904191339,0.00157832,59520.0,59519.0,1.98676925]
[1723904191522,0.00157832,59520.0,59519.0,1.95788098]
[1723904191932,0.00157832,59520.0,59519.0,1.93659483]
[1723904192138,0.00157832,59520.0,59519.0,1.95788095]
[1723904193219,0.00157832,59520.0,59519.0,1.88477416]
[1723904193618,0.00157832,59520.0,59519.0,1.43691066]
[1723904195173,0.00157832,59520.0,59519.0,1.88481399]
[1723904195374,0.00157832,59520.0,59519.0,1.51210348]
[1723904195629,0.00157832,59520.0,59519.0,1.88480935]
[1723904195884,0.00157832,59520.0,59519.0,1.88480593]
[1723904196080,0.00157832,59520.0,59519.0,1.78832699]
[1723904196254,0.00157832,59520.0,59519.0,1.80961502]
[1723904196472,0.00157832,59520.0,59519.0,1.83361314]
[1723904196843,0.00157832,59520.0,59519.0,1.93287024]
[1723904197022,0.00157832,59520.0,59519.0,1.90776388]
[1723904197323,0.00157832,59520.0,59519.0,1.53506143]
[1723904197557,0.11682634,59528.0,59527.0,0.629965]
[1723904198033,0.06730146,59528.0,59527.0,0.629965]
[1723904199117,0.06830146,59528.0,59527.0,0.641965]
[1723904201745,0.06830146,59528.0,59527.0,0.389979]
[1723904201961,0.14830146,59528.0,59527.0,0.389979]
[1723904202700,0.20970146,59528.0,59527.0,0.389979]
[1723904202903,0.20970146,59528.0,59527.0,0.012]
[1723904204674,0.33569246,59528.0,59527.0,0.012]
[1723904205177,0.58767446,59528.0,59527.0,0.012]
[1723904205416,0.58767446,59528.0,59527.0,0.007]
[1723904205626,0.1411,59526.0,59523.0,0.126001]
[1723904205827,0.1411,59526.0,59519.0,0.0009075]
[1723904205828,0.0766,59523.0,59519.0,0.0009075]
[1723904206030,0.251995,59525.0,59520.0,0.126008]
[1723904206031,0.0766,59521.0,59520.0,0.126008]
[1723904206531,0.0766,59521.0,59520.0,0.378024]
[1723904206960,0.0766,59521.0,59520.0,0.126008]
[1723904207626,0.0766,59521.0,59520.0,0.131008]
[1723904208086,0.0766,59521.0,59520.0,0.005]
[1723904208597,0.0766,59521.0,59520.0,0.134008]
[1723904208829,0.0766,59521.0,59520.0,0.126008]
[1723904209314,0.0645,59522.0,59521.0,0.126005]
[1723904209563,0.0766,59524.0,59521.0,0.126005]
[1723904209564,0.0766,59524.0,59522.0,0.126003]
[1723904209804,0.0766,59524.0,59523.0,0.126001]
[1723904209937,0.0766,59524.0,59523.0,0.378004]
[1723904211043,0.0776,59524.0,59523.0,0.39928412]
[1723904211274,0.0766,59524.0,59523.0,0.39928412]
[1723904211692,0.0776,59524.0,59523.0,0.39928412]
[1723904211898,0.001,59524.0,59523.0,0.65128712]
[1723904212165,0.001,59524.0,59523.0,0.65229001]
[1723904212954,0.001,59524.0,59523.0,0.127001]
[1723904212955,0.1421,59524.0,59523.0,0.127001]
[1723904214469,0.1421,59524.0,59523.0,0.001]
[1723904214682,0.520098,59524.0,59523.0,0.001]
[1723904215087,0.772922,59524.0,59523.0,0.001]
[1723904216312,0.80264,59520.0,59519.0,0.0009075]
[1723904216509,1.28642999,59520.0,59519.0,0.0009075]
[1723904217068,1.38022999,59520.0,59519.0,0.0009075]
[1723904218040,1.38722999,59520.0,59519.0,0.0019075]
[1723904218244,0.268631,59509.0,59508.0,0.0009075]
[1723904218408,0.614493,59509.0,59508.0,0.0009075]
[1723904218614,0.866555,59509.0,59508.0,0.0009075]
[1723904219262,1.118617,59509.0,59508.0,0.0009075]
[1723904219877,1.024817,59509.0,59508.0,0.0009075]
[1723904220082,1.025817,59509.0,59508.0,0.0009075]
[1723904220452,1.29995324,59509.0,59508.0,0.0009075]